[Event "HSK GM Invitational 2022"]
[Site "Hamburg"]
[Date "2022.05.22"]
[Round "3.4"]
[White "Kotronias, Vasilios"]
[Black "Woelk, Tom-Frederic"]
[Result "1-0"]
[ECO "B48"]
[WhiteElo "2465"]
[BlackElo "2315"]
[Annotator "TA"]
[PlyCount "79"]
[EventDate "2022.05.20"]
[EventType "tourn"]
[EventCountry "GER"]
[SourceTitle "playchess.com"]
[Source "ChessBase"]
[SourceQuality "1"]
[TimeControl "40/5400+30:1800+30"]

{[%evp 11,79,35,22,0,6,0,0,0,0,0,0,0,0,0,0,0,0,0,26,25,83,0,88,106,288,287,266,280,260,266,273,257,313,285,302,285,332,339,370,226,230,203,365,358,359,330,447,442,600,591,633,411,405,390,402,395,478,494,484,468,483,463,437,405,730,602,602,562,589,479]} 1. e4 {[%emt 0:00:10]} c5 {[%emt 0:00:08]} 2. Nf3 {[%emt 0:00:08]} e6 {[%emt 0:00:04]} 3. d4 {[%emt 0:00:07]} cxd4 {[%emt 0:00:05]} 4. Nxd4 {[%emt 0:00:05]} Nc6 {[%emt 0:00:06]} 5. Nc3 {[%emt 0:00:05]} Qc7 {[%emt 0:00:03]} 6. Be3 {[%emt 0:00:06]} a6 {[%emt 1:33:04]} 7. g4 {[%emt 0:00:07] B48: Sicilian: Taimanov: 5 Nc3 Qc7 6 Be3 a6 without Be2.} b5 {[%emt 0:01:15][%cal Bb7b5,Bb5b4][%mdl 32]} 8. Nxc6 {[%emt 0:00:13]} Qxc6 {[%emt 0:00:04]} 9. Qd2 {[%emt 1:33:59] The position is equal.} b4 {[%emt 0:00:47]} 10. Ne2 {[%emt 0:00:08]} Qxe4 {[%emt 0:00:03]} 11. Rg1 {[%emt 0:00:21]} Qc4 {[%emt 0:00:03]} 12. Ng3 {[%emt 0:04:54]} Qc7 {[%emt 0:01:30]} 13. O-O-O {[%emt 0:00:28]} Nf6 {[%emt 0:01:53]} 14. Bf4 {[%emt 0:03:22] [#]} Qb6 $146 {[%emt 0:31:09]} ({Predecessor:} 14... d6 15. Qxb4 Rb8 16. Bxd6 Rxb4 17. Bxc7 Nd5 18. Be5 Bc5 19. c4 Ne3 20. Bc3 Nxd1 21. Bxb4 Bxb4 22. Kxd1 {½-½ (59) Wachinger,N (2360)-Finek,V (2425) Marianske Lazne 2022}) 15. Be5 {[%emt 0:14:13]} Bc5 {[%emt 0:17:24]} (15... d5 $11) 16. Qg5 {[%emt 0:33:39]} (16. Bg2 $16 d5 17. g5 Bxf2 18. Rge1 (18. gxf6 $2 Be3 $19) 18... Bxe1 19. Rxe1) 16... Rg8 {[%emt 0:14:13]} (16... Rf8 17. Qxg7 Nd5 18. Ne4 $16) (16... Be7 $1 $11) 17. Bxf6 $16 {[%emt 0:10:43][%mdl 64] Pin. White is more active.} Bxf2 $2 {[%emt 0:30:09] [#] Loses the game.} (17... h6 $16 18. Qf4 gxf6) 18. Nf5 $1 $18 {[%emt 0:00:12][%mdl 512]} exf5 {[%emt 0:01:50] [#]} (18... Bxg1 $2 19. Bd4 (19. Nd6+ Qxd6 20. Rxd6 h6 $16) 19... f6 20. Qh5+ Kd8 21. Bxb6+ Bxb6 22. Qf7 $18) 19. Bd4 {[%emt 0:05:39][%mdl 576] Prevents Be3+. Deflection} Bxd4 {[%emt 0:01:06]} 20. Re1+ {[%emt 0:00:07]} Qe6 {[%emt 0:00:18][%cal Re6e1] [#]} 21. Bc4 $1 $40 {[%emt 0:06:33][%mdl 192] Pin. White attacks with force.} Bxg1 {[%emt 0:00:28][%cal Re6e1]} 22. Bxe6 {[%emt 0:00:08] Dancing on a razor blade.} (22. Rxe6+ $2 {is the wrong capture.} dxe6 23. gxf5 Ba7 $19) 22... dxe6 {[%emt 0:00:13]} 23. Rxg1 {[%emt 0:00:12][%cal Be1g1,Bg1g4,Bg4d4][%mdl 32] Strongly threatening gxf5.} fxg4 {[%emt 0:04:16]} 24. Rxg4 {[%emt 0:02:29]} a5 {[%emt 0:05:10]} 25. Qb5+ {[%emt 0:05:07]} Bd7 {[%emt 0:00:34]} 26. Qb7 {[%emt 0:00:07]} Ke7 $2 {[%emt 0:06:21]} (26... Rd8 {was worth a try.} 27. Qc7 f5) 27. Rd4 {[%emt 0:00:06]} Rad8 {[%emt 0:00:06]} 28. Qc7 {[%emt 0:00:14]} f5 {[%emt 0:01:00]} 29. Qxa5 {[%emt 0:00:12]} Rge8 {[%emt 0:00:49]} 30. Qxb4+ {[%emt 0:00:17]} Kf7 {[%emt 0:00:18]} 31. Qb7 {[%emt 0:05:47]} Re7 {[%emt 0:00:24]} 32. Qc7 {[%emt 0:00:13]} Rc8 {[%emt 0:00:06]} 33. Qe5 {[%emt 0:00:05]} ({Not} 33. Qb7 Rxc2+ 34. Kb1 (34. Kxc2 Ba4+ 35. Rxa4 Rxb7 $17) 34... Ba4 $14) 33... g5 {[%emt 0:01:52]} 34. a4 {[%emt 0:02:40][%cal Ba2a4,Ba4a5][%mdl 32]} h5 {[%emt 0:01:24]} 35. a5 {[%emt 0:00:57]} Ra8 {[%emt 0:00:24]} 36. h4 {[%emt 0:02:27]} g4 {[%emt 0:00:43]} 37. b4 {[%emt 0:00:22][%cal Bb2b4,Bb4b5][%mdl 32]} Rg8 {[%emt 0:00:58]} (37... Bc6 $142 38. Kb2 Rg8) 38. Rd3 {[%emt 0:06:21] White is clearly winning.} Bc6 {[%emt 0:01:10]} 39. b5 {[%emt 0:00:24]} Be4 {[%emt 0:00:12]} 40. Rc3 {[%emt 0:00:38] Weighted Error Value: White=0.23 (precise) /Black=0.42} 1-0

[Event "HSK GM Invitational 2022"]
[Site "Hamburg"]
[Date "2022.05.23"]
[Round "4.1"]
[White "Prohaszka, Peter"]
[Black "Carlstedt, Jonathan"]
[Result "1-0"]
[ECO "A63"]
[WhiteElo "2579"]
[BlackElo "2444"]
[Annotator "TA"]
[PlyCount "73"]
[EventDate "2022.05.20"]
[EventType "tourn"]
[EventCountry "GER"]
[SourceTitle "playchess.com"]
[Source "ChessBase"]
[SourceQuality "1"]
[TimeControl "40/5400+30:1800+30"]

{[%evp 21,73,35,41,11,31,25,43,31,120,75,77,60,127,124,112,33,171,177,264,79,90,75,190,190,91,181,174,182,191,169,183,173,170,177,179,177,180,174,185,188,170,170,183,211,240,181,446,448,499,485,623,619,560,531]} 1. d4 {[%emt 0:00:28]} Nf6 {[%emt 0:00:10]} 2. Nf3 {[%emt 0:00:14]} c5 {[%emt 0:00:43]} 3. d5 {[%emt 0:00:08]} e6 {[%emt 0:00:08]} 4. c4 {[%emt 0:02:20]} exd5 {[%emt 0:00:07]} 5. cxd5 {[%emt 0:00:04]} d6 {[%emt 0:00:08]} 6. Nc3 {[%emt 0:02:17]} g6 {[%emt 0:00:29]} 7. g3 {[%emt 0:00:46]} Bg7 {[%emt 0:00:27]} 8. Bg2 {[%emt 0:00:04]} O-O {[%emt 0:00:08]} 9. O-O {[%emt 0:00:04]} a6 {[%emt 0:04:13]} 10. a4 {[%emt 0:00:34]} Nbd7 {[%emt 0:00:07]} 11. Bf4 {[%emt 0:07:54]} Qc7 {[%emt 0:00:30]} 12. Rc1 {[%emt 0:05:43][%cal Ob2b4] A63: Modern Benoni: Fianchetto Variation: 9...Nbd7.} h6 {[%emt 0:16:14] [#]} 13. h3 $146 {[%emt 0:04:28]} ({Predecessor:} 13. e4 g5 14. Bd2 Re8 15. Ne1 c4 16. b4 cxb3 17. Nb5 Qb6 18. Be3 Nc5 19. Nxd6 Qxd6 20. Bxc5 {0-1 (28) Veinberg,N (2147)-Oganian,M (2331) Budva 2013}) 13... Nh5 {[%emt 0:02:01]} 14. Bd2 {[%emt 0:05:04] White is slightly better.} f5 {[%emt 0:00:22]} (14... Nhf6 $14) 15. Re1 {[%emt 0:27:26]} Ndf6 {[%emt 0:10:47]} 16. b4 {[%emt 0:05:01]} b6 {[%emt 0:16:47]} ({Black should try} 16... Ne4 $14) 17. a5 $1 $16 {[%emt 0:01:51] Hoping for axb6.} b5 {[%emt 0:00:09]} 18. Be3 {[%emt 0:03:40]} (18. bxc5 $16 {Strongly threatening e4.} dxc5 19. d6 Qxd6 20. Nh4) 18... cxb4 {[%emt 0:09:21]} (18... Rd8 $14) 19. Nxb5 $1 $18 {[%emt 0:02:19]} Qxa5 {[%emt 0:00:19]} (19... Qe7 {was called for.}) 20. Nc7 $2 {[%emt 0:07:25]} (20. Nxd6 $18 {is the precise move to win. Ne5 is the strong threat.} Qxd5 21. Nh4 Qxd1 22. Rexd1) 20... Rb8 $16 {[%emt 0:06:23]} 21. Nd4 {[%emt 0:01:56] aiming for Qd2. White is more active.} Rf7 {[%emt 0:04:51]} (21... Ne4 $16) 22. Nce6 $1 $18 {[%emt 0:06:41] Black must now prevent Ra1.} Nxd5 {[%emt 0:14:46] [#]} 23. Nc6 $1 $36 {[%emt 0:02:23][%csl LRa5,LRb8,LRd5][%mdl 2048] Keeping Black busy.} Nxe3 {[%emt 0:00:07]} 24. Qxd6 {[%emt 0:00:49]} Qb6 {[%emt 0:00:55]} 25. Nxg7 {[%emt 0:02:05] The board is on fire.} ({Inferior is} 25. Qxb8 Qxb8 26. Nxb8 Bxe6 $17) 25... Kxg7 {[%emt 0:02:18]} 26. Qxb8 {[%emt 0:04:09]} Qxb8 {[%emt 0:00:40]} 27. Nxb8 {[%emt 0:00:02]} Nxg2 {[%emt 0:00:09]} 28. Kxg2 {[%emt 0:02:51]} Bb7+ {[%emt 0:00:11]} 29. f3 {[%emt 0:00:57]} Nf6 {[%emt 0:04:50]} 30. Nc6 {[%emt 0:03:01]} Nd5 {[%emt 0:01:58]} 31. Kf2 {[%emt 0:00:04]} Ba8 {[%emt 0:03:11] [#]} 32. Rc5 $1 {[%emt 0:00:56]} f4 {[%emt 0:02:08]} 33. gxf4 {[%emt 0:01:55]} Rxf4 $2 {[%emt 0:00:13]} (33... Nxf4 {was worth a try.} 34. Nxb4 g5) 34. e4 {[%emt 0:00:59] White is clearly winning.} Nc3 {[%emt 0:01:03]} 35. Kg3 {[%emt 0:00:32]} g5 {[%emt 0:00:05]} 36. Nxb4 {[%emt 0:00:19]} Nb5 {[%emt 0:00:46]} 37. Rd1 {[%emt 0:00:30] Inhibits Nd4.  Weighted Error Value: White=0.23 (precise) /Black=0.47} 1-0

[Event "HSK GM Invitational 2022"]
[Site "Hamburg"]
[Date "2022.05.23"]
[Round "4.2"]
[White "Woelk, Tom-Frederic"]
[Black "Koellner, Ruben Gideon"]
[Result "0-1"]
[ECO "C41"]
[WhiteElo "2315"]
[BlackElo "2440"]
[Annotator "TA"]
[PlyCount "76"]
[EventDate "2022.05.20"]
[EventType "tourn"]
[EventCountry "GER"]
[SourceTitle "playchess.com"]
[Source "ChessBase"]
[SourceQuality "1"]
[TimeControl "40/5400+30:1800+30"]

{[%evp 9,76,-15,-19,-24,-30,-22,-28,-34,-21,-64,-54,-51,-53,-119,-68,-113,-121,-170,-169,-227,-197,-212,-99,-147,-125,-148,-154,-151,-156,-156,-141,-147,-147,-367,-252,-334,-319,-451,-454,-447,-376,-359,-301,-424,-296,-324,-310,-450,-443,-454,-386,-393,-385,-493,-493,-504,-498,-615,-468,-797,-734,-988,-979,-2682,-3433,-5723,-5658,-5919,-5911]} 1. e4 {[%emt 0:00:03]} d6 {[%emt 0:00:10]} 2. d4 {[%emt 0:00:23]} Nf6 {[%emt 0:00:05]} 3. Nc3 {[%emt 0:00:03]} e5 {[%emt 0:00:04]} 4. Nf3 {[%emt 0:00:03]} Nbd7 {[%emt 0:00:06]} 5. g4 {[%emt 0:00:08]} Nxg4 {[%emt 0:01:27]} 6. Rg1 {[%emt 0:00:42] C41: Philidor Defence.} (6. Bg5 {keeps more tension.} Be7 7. Bxe7 Qxe7 8. Nd5) 6... Ngf6 {[%emt 0:00:26]} 7. Be3 $1 {[%emt 0:00:39]} c6 {[%emt 0:00:47]} 8. Qd2 {[%emt 0:01:17] Black has an edge.} b5 {[%emt 0:03:28]} 9. a3 {[%emt 0:05:16]} Qa5 {[%emt 0:08:40]} 10. Bd3 {[%emt 0:23:22]} Bb7 {[%emt 0:05:44] [#]} 11. Kf1 $146 {[%emt 0:11:19]} (11. O-O-O $15) ({Predecessor:} 11. O-O-O a6 12. Qe1 c5 13. Bd2 Qc7 14. dxe5 dxe5 15. Nd5 Nxd5 16. exd5 g6 17. Nxe5 Nxe5 {1-0 (86) Trbojevic,M (2365)-Egri,L (2104) Hungary 2014}) 11... a6 {[%emt 0:04:43]} (11... Qc7 $17) 12. b4 {[%emt 0:12:57]} Qc7 {[%emt 0:00:22]} 13. a4 {[%emt 0:00:08]} (13. Be2 $17) 13... g6 $19 {[%emt 0:18:48]} 14. Bh6 {[%emt 0:05:17]} (14. axb5 $142 cxb5 15. d5) 14... Bxh6 {[%emt 0:10:08]} 15. Qxh6 {[%emt 0:00:55]} Qd8 {[%emt 0:12:18]} (15... exd4 $19 16. Ne2 c5) 16. Rg5 {[%emt 0:14:58]} ({White should try} 16. axb5 cxb5 17. d5) 16... Qe7 {[%emt 0:00:26]} 17. Re1 {[%emt 0:02:02]} Nh5 {[%emt 0:05:00]} 18. axb5 {[%emt 0:04:08]} axb5 {[%emt 0:01:43] Hoping for ...Ndf6.} 19. d5 {[%emt 0:02:18]} Ndf6 {[%emt 0:08:55] [#] And now ...Ng8 would win.} 20. dxc6 {[%emt 0:00:54]} Bxc6 {[%emt 0:00:13] White must now prevent ...Ng8.} 21. Rg1 $2 {[%emt 0:02:03] Now White is beyond hope.} ({Don't go for} 21. Bxb5 $2 Bxb5+ 22. Nxb5 Ng8 23. Rxe5 dxe5 $19) (21. Nd5 $17 Qf8 22. Rxh5 Nxh5 23. Qe3) 21... Qb7 {[%emt 0:00:27]} 22. Qg5 {[%emt 0:00:49]} Ra3 {[%emt 0:04:18]} 23. Nd5 {[%emt 0:00:20]} (23. Nb1 $142 h6 24. Qe3) 23... Bxd5 {[%emt 0:01:35]} 24. exd5 {[%emt 0:00:06]} h6 {[%emt 0:00:22]} 25. Qc1 {[%emt 0:00:34]} Rc3 {[%emt 0:04:34]} 26. Qa1 {[%emt 0:00:35] [#]} (26. Qd2 {was called for.} Rc8 27. Nd4) 26... Rxd3 $1 {[%emt 0:01:10][%mdl 512]} 27. Nxe5 {[%emt 0:01:52]} (27. cxd3 O-O) 27... dxe5 {[%emt 0:00:47]} 28. Qxe5+ {[%emt 0:00:05]} (28. Rxe5+ $142 Kd7 29. cxd3) 28... Kf8 {[%emt 0:00:20]} 29. cxd3 {[%emt 0:00:03]} Qxd5 {[%emt 0:00:55]} 30. Qxd5 {[%emt 0:01:07]} Nxd5 {[%emt 0:00:05]} 31. Rg4 {[%emt 0:00:06]} Nhf4 {[%emt 0:00:47] Black is clearly winning.} 32. Re4 {[%emt 0:00:51]} g5 {[%emt 0:00:22]} 33. Rd4 {[%emt 0:00:31]} f5 {[%emt 0:00:58]} 34. Rg3 {[%emt 0:01:14]} (34. Rgxf4 $142 Nxf4 35. Rd7) 34... Ke7 {[%emt 0:00:40]} 35. h4 {[%emt 0:00:17]} Kf6 {[%emt 0:00:22]} 36. hxg5+ {[%emt 0:00:06]} hxg5 {[%emt 0:00:05][%cal Bh6g5,Bg5g4][%mdl 32] ( -> ...Rh1+)} 37. Ke1 {[%emt 0:00:04]} g4 {[%emt 0:01:24] aiming for ...Ke5.} 38. f3 {[%emt 0:01:42]} Rh3 {[%emt 0:00:25] Weighted Error Value: White=0.97/Black=0.28 (precise)} 0-1

[Event "HSK GM Invitational 2022"]
[Site "Hamburg"]
[Date "2022.05.23"]
[Round "4.3"]
[White "Mendonca, Leon Luke"]
[Black "Kotronias, Vasilios"]
[Result "1-0"]
[ECO "E94"]
[WhiteElo "2551"]
[BlackElo "2465"]
[Annotator "TA"]
[PlyCount "169"]
[EventDate "2022.05.20"]
[EventType "tourn"]
[EventCountry "GER"]
[SourceTitle "playchess.com"]
[Source "ChessBase"]
[SourceQuality "1"]
[TimeControl "40/5400+30:1800+30"]

{[%evp 15,169,37,34,27,37,31,37,12,47,42,49,31,35,34,39,23,23,23,30,23,23,19,19,19,25,31,29,19,19,0,0,0,0,0,0,0,0,0,59,59,56,43,38,29,35,43,41,41,37,46,37,0,12,9,56,50,44,54,58,53,89,47,77,102,97,93,145,154,152,100,97,98,109,39,590,556,476,14,14,20,14,8,8,8,14,16,23,23,23,23,31,22,27,11,310,310,2009,1772,10059,9928,8621,8570,8621,6945,29949,29946,29956,29961,29951,29962,29969,29970,29967,29959,12833,5700,3072,2515,9979,0,29979,29955,29975,29976,29982,29983,29984,29979,29982,29980,29982,29983,29984,29985,29985,29981,29977,29977,29975,606,29981,29982,29982,29983,29983,29984,29984,29985,29984,29983,29988,29987,29987,29988,29988,29989]} 1. d4 {[%emt 0:00:04]} Nf6 {[%emt 0:00:55]} 2. c4 {[%emt 0:00:24]} g6 {[%emt 0:00:06]} 3. Nc3 {[%emt 0:00:12]} Bg7 {[%emt 0:00:09]} 4. e4 {[%emt 0:00:17]} d6 {[%emt 0:00:08]} 5. Nf3 {[%emt 0:00:33]} O-O {[%emt 0:00:08]} 6. Be2 {[%emt 0:00:24]} e5 {[%emt 0:00:26]} 7. O-O {[%emt 0:00:53]} Bg4 {[%emt 0:00:09]} 8. d5 {[%emt 0:01:42]} a5 {[%emt 0:00:08]} 9. Be3 {[%emt 0:04:36] The main line 9.Be3 scores better than 9.Ne1. E94: King's Indian: Classical: 6 Be2 e5 7 0-0: Various Black 7th moves.} Na6 {[%emt 0:00:09]} 10. a3 {[%emt 0:01:58]} Bd7 {[%emt 0:09:46]} 11. Nd2 {[%emt 0:01:55] White is slightly better.} h5 {[%emt 0:05:46]} 12. h3 {[%emt 0:18:58] Inhibits Ng4.} Nh7 {[%emt 0:02:40] [#]} 13. Qc2 $146 {[%emt 0:10:53]} ({Predecessor:} 13. Rb1 Nc5 14. b4 axb4 15. axb4 Na4 16. Nxa4 Bxa4 17. Qc1 f5 18. exf5 gxf5 19. f4 {½-½ (42) Yeletsky,I (2448)-Obgolts,E (2417) Sochi 2021}) 13... Bf6 {[%emt 0:13:12]} 14. Nf3 {[%emt 0:13:27]} Ng5 {[%emt 0:02:58]} 15. Qd2 {[%emt 0:10:21][%cal Rf3g5]} Nxf3+ {[%emt 0:00:49]} 16. Bxf3 {[%emt 0:00:05]} Nc5 {[%emt 0:04:02]} 17. Bd1 {[%emt 0:02:31] Prevents Nb3.} a4 {[%emt 0:06:01] Prevents b3.} 18. Bc2 {[%emt 0:04:59]} b6 {[%emt 0:05:02]} 19. Rae1 {[%emt 0:03:35]} Qe7 {[%emt 0:01:01]} 20. Qd1 {[%emt 0:03:03]} Rfb8 {[%emt 0:02:04]} 21. Re2 {[%emt 0:01:57]} Qe8 {[%emt 0:10:57]} 22. f4 {[%emt 0:10:01]} exf4 {[%emt 0:00:19]} 23. Bxf4 {[%emt 0:00:20]} Qe7 $1 {[%emt 0:05:26]} 24. Ref2 {[%emt 0:02:57][%cal Oe4e5]} Bg7 {[%emt 0:03:47] Prevents e5.} 25. Qd2 {[%emt 0:01:06][%cal Oe4e5]} Rf8 {[%emt 0:00:45]} 26. Bg5 {[%emt 0:02:02]} f6 {[%emt 0:03:21]} (26... Qe5 $11) 27. Be3 $14 {[%emt 0:00:51][%cal Oe4e5]} Nb3 {[%emt 0:00:06]} 28. Bxb3 {[%emt 0:01:39]} axb3 {[%emt 0:00:04]} 29. Bd4 {[%emt 0:00:50]} f5 {[%emt 0:07:08]} 30. Bxg7 {[%emt 0:00:04]} (30. Re2 {feels hotter.} Bxd4+ 31. Qxd4 Qh4 32. Qd1) 30... Qxg7 {[%emt 0:00:08]} 31. exf5 {[%emt 0:00:12]} Rxf5 {[%emt 0:03:22]} 32. Rxf5 {[%emt 0:00:03]} Bxf5 {[%emt 0:00:06]} 33. Nb5 {[%emt 0:00:19]} (33. Re1 $5 {[%cal Rc3b5]}) 33... Re8 {[%emt 0:02:21]} 34. Nd4 {[%emt 0:00:23]} Re5 {[%emt 0:00:18]} (34... Bd7 $11 {deserves consideration.}) 35. Rf3 {[%emt 0:01:42]} Bd7 {[%emt 0:07:16]} 36. Rxb3 {[%emt 0:01:09]} Re4 {[%emt 0:01:57]} 37. Rd3 {[%emt 0:00:25]} Qe5 {[%emt 0:02:31]} 38. b3 {[%emt 0:01:01]} Re1+ {[%emt 0:02:28]} 39. Kf2 {[%emt 0:00:05]} Rb1 {[%emt 0:00:06]} 40. Nf3 $36 {[%emt 0:01:31][%mdl 2048] White is on the roll.} Qf6 {[%emt 0:00:19] [#]} (40... Qb2 $142) 41. Qh6 $1 $16 {[%emt 0:07:50]} ({Much less strong is} 41. Kg3 Bf5 42. Re3 g5 $16) 41... b5 {[%emt 0:06:09]} 42. cxb5 {[%emt 0:02:43]} ({Better is} 42. Re3) 42... Bxb5 {[%emt 0:00:16] [#]} 43. Re3 {[%emt 0:02:13] Strongly threatening Re6.} Bd7 {[%emt 0:14:13] Against Re6} (43... h4 $2 44. Qxh4 Qxh4+ 45. Nxh4 $18) 44. Kg3 {[%emt 0:14:26]} (44. Qg5 $16 Rb2+ 45. Kg3 Qxg5+ 46. Nxg5) 44... Rb2 $2 {[%emt 0:00:14][%mdl 8192]} ({Black should play} 44... Rd1 $1 $14) 45. a4 {[%emt 0:02:27]} c6 {[%emt 0:01:34]} 46. Qg5 {[%emt 0:03:02]} (46. Nh4 $18) 46... Qxg5+ $11 {[%emt 0:01:26]} 47. Nxg5 {[%emt 0:00:01] Re7 is the strong threat.} cxd5 {[%emt 0:00:26][%mdl 4096] Endgame KRB-KRN} 48. Nf3 {[%emt 0:00:14]} Kf7 {[%emt 0:05:06] Prevents Re7+.} 49. h4 {[%emt 0:01:34]} Kf6 {[%emt 0:01:48]} 50. Rd3 {[%emt 0:00:24]} Bf5 {[%emt 0:00:55]} 51. Rxd5 {[%emt 0:00:17]} Rxb3 {[%emt 0:00:03]} 52. Rxd6+ {[%emt 0:00:03]} Ke7 {[%emt 0:00:16]} 53. Ra6 {[%emt 0:01:34]} Be4 {[%emt 0:02:39]} 54. Kf4 {[%emt 0:00:41]} Bxf3 {[%emt 0:00:13][%mdl 8192] Black is now going downhill.} (54... Rb4 $11 55. Ke5 Bxf3 56. gxf3 Rxh4) 55. gxf3 {[%emt 0:00:05] Hoping for Kg5. KR-KR} Kf7 $2 {[%emt 0:00:09]} (55... Rb2 56. Rxg6 Rb4+ 57. Kg5 Rxa4) 56. Kg5 $18 {[%emt 0:00:22]} Rxf3 {[%emt 0:01:44]} 57. Ra7+ {[%emt 0:00:10]} Ke6 {[%emt 0:00:38]} 58. Kxg6 {[%emt 0:00:03]} Rg3+ {[%emt 0:01:40]} 59. Kxh5 {[%emt 0:00:05] Kh6 would kill now.} Kf6 {[%emt 0:00:15]} 60. Ra6+ {[%emt 0:00:54]} Kf5 {[%emt 0:01:05]} 61. Kh6 {[%emt 0:00:44]} Rh3 {[%emt 0:00:30]} 62. h5 {[%emt 0:00:37]} Rh4 {[%emt 0:00:06]} 63. Kg7 {[%emt 0:00:59]} Rg4+ {[%emt 0:00:18]} 64. Kh7 {[%emt 0:00:36]} Rb4 {[%emt 0:00:12]} 65. Ra7 {[%emt 0:00:37]} (65. Kg8 $142 Rb8+ 66. Kg7 Rb7+ 67. Kf8) 65... Kg5 {[%emt 0:00:58]} 66. Ra5+ {[%emt 0:00:43]} Kf6 {[%emt 0:00:05]} 67. Ra6+ $2 {[%emt 0:00:27]} ({Only move:} 67. Kh6 $18 Rb8 68. Ra6+ Kf5 69. Kg7 Rb7+ 70. Kf8) 67... Kf7 $2 {[%emt 0:00:15][%mdl 8192]} (67... Kf5 $11) 68. Kh6 {[%emt 0:00:35]} Rg4 {[%emt 0:00:14]} 69. a5 {[%emt 0:00:25]} Rg1 {[%emt 0:01:23]} 70. Rg6 {[%emt 0:00:22]} Ra1 {[%emt 0:00:09]} 71. Rg5 {[%emt 0:00:20]} Rf1 {[%emt 0:00:58]} 72. Kh7 {[%emt 0:00:28]} Rf6 {[%emt 0:00:23]} 73. h6 {[%emt 0:00:59]} Kf8 {[%emt 0:00:22]} 74. Rg6 {[%emt 0:00:24]} Rf7+ {[%emt 0:00:05]} 75. Rg7 {[%emt 0:00:10]} Rf6 {[%emt 0:00:09]} 76. Ra7 {[%emt 0:00:40]} Rc6 {[%emt 0:00:12]} 77. a6 {[%emt 0:00:25]} (77. Rb7 $142 Ra6 78. Rb6 Rxa5 79. Kg6 Ra1 80. Rb8+ Ke7 81. h7 Ke6 82. Re8+ Kd7 83. h8=Q) 77... Rd6 {[%emt 0:02:30]} 78. Ra8+ {[%emt 0:00:43] White mates.} Kf7 {[%emt 0:00:04]} 79. a7 {[%emt 0:00:08]} Rd7 {[%emt 0:00:07]} 80. Rg8 {[%emt 0:00:32]} Kf6+ {[%emt 0:00:06]} 81. Rg7 {[%emt 0:00:03]} Rd8 {[%emt 0:00:07]} 82. Rg6+ {[%emt 0:00:03]} Kf7 {[%emt 0:00:11]} 83. Ra6 {[%emt 0:00:20]} Ra8 {[%emt 0:00:43]} 84. Ra1 {[%emt 0:00:06]} Kf6 {[%emt 0:00:12]} 85. Ra2 {[%emt 0:00:07] Weighted Error Value: White=0.28 (precise) /Black=0.47} 1-0